bitfinex/quotes_BTCUSD_20240831
["timestamp","ask_amount","ask_price","bid_price","bid_amount"]
[1725108477446,0.85957317,59361.0,59360.0,0.38596144]
[1725108479164,1.19649417,59361.0,59360.0,0.38596144]
[1725108479625,1.19649417,59361.0,59360.0,0.48681442]
[1725108481186,1.20779417,59361.0,59360.0,0.38600566]
[1725108481653,1.20779417,59361.0,59360.0,0.08755236]
[1725108481903,1.20779417,59361.0,59360.0,0.0118998]
[1725108482327,1.20779417,59361.0,59360.0,0.46167841]
[1725108482556,1.20779417,59361.0,59360.0,0.08754458]
[1725108483385,1.20779417,59361.0,59360.0,0.0118998]
[1725108483592,1.20779417,59361.0,59360.0,0.4616752]
[1725108483834,1.20779417,59361.0,59360.0,0.08754458]
[1725108484044,1.20779417,59361.0,59360.0,0.0118998]
[1725108484258,1.23422102,59361.0,59360.0,0.0118998]
[1725108484480,1.23422102,59361.0,59360.0,0.08754458]
[1725108485579,1.23422102,59361.0,59360.0,0.46166486]
[1725108485787,1.23422102,59361.0,59360.0,0.08754458]
[1725108485995,1.22292102,59361.0,59360.0,0.38601731]
[1725108486203,1.22292102,59361.0,59360.0,0.48684935]
[1725108486403,1.22292102,59361.0,59360.0,0.38601731]
[1725108487034,1.19649417,59361.0,59360.0,0.38601731]
[1725108487242,1.19649417,59361.0,59360.0,0.48684195]
[1725108488132,1.19649417,59361.0,59360.0,0.48685139]
[1725108488357,1.19649417,59361.0,59360.0,0.38602427]
[1725108488589,1.19649417,59361.0,59360.0,0.48684597]
[1725108490195,1.19649417,59361.0,59360.0,0.38602427]
[1725108490641,1.19649417,59361.0,59360.0,0.48684597]
[1725108491578,1.19649417,59361.0,59360.0,0.48683199]
[1725108492277,0.000818,59361.0,59360.0,0.62763199]
[1725108492485,0.169278,59361.0,59360.0,0.52682427]
[1725108492885,0.506199,59361.0,59360.0,0.52682427]
[1725108495334,0.506199,59361.0,59360.0,0.52678707]
[1725108498530,0.169278,59361.0,59360.0,0.52678707]
[1725108498731,0.000818,59361.0,59360.0,0.69525007]
[1725108499219,0.000818,59361.0,59360.0,0.52678707]
[1725108499957,0.000818,59361.0,59360.0,0.1526998]
[1725108500163,0.000818,59361.0,59360.0,0.52678533]
[1725108500587,0.84312,59361.0,59360.0,0.57778935]
[1725108500936,0.84312,59361.0,59360.0,0.45178533]
[1725108501781,0.506199,59361.0,59360.0,0.45178533]
[1725108502421,0.84312,59361.0,59360.0,0.45178533]
[1725108502636,0.84312,59361.0,59360.0,0.38598533]
[1725108503111,0.84312,59361.0,59360.0,0.48680556]
[1725108503330,0.84312,59361.0,59360.0,0.38598533]
[1725108504612,0.84312,59361.0,59360.0,0.48680411]
[1725108507760,0.84312,59361.0,59360.0,0.38598533]
[1725108508710,0.84312,59361.0,59360.0,0.48680681]
[1725108510062,0.84312,59361.0,59360.0,0.38598533]
[1725108511237,0.84312,59361.0,59360.0,0.48680546]
[1725108511462,0.84312,59361.0,59360.0,0.38598533]
[1725108514245,0.84312,59361.0,59360.0,0.45038533]
[1725108514497,0.84312,59361.0,59360.0,0.57638935]
[1725108516596,0.84312,59361.0,59360.0,0.45038533]
[1725108519723,0.84312,59361.0,59360.0,0.45040924]
[1725108521373,0.506199,59361.0,59360.0,0.45040924]
[1725108522767,0.506199,59361.0,59360.0,0.53240924]
[1725108522768,0.000818,59361.0,59360.0,0.53240924]
[1725108523224,0.000818,59361.0,59360.0,1.37592632]
[1725108523452,0.000818,59361.0,59360.0,0.70087224]
[1725108525976,0.000818,59361.0,59360.0,1.37592815]
[1725108526186,0.3377,59368.0,59361.0,0.064]
[1725108526426,0.168452,59364.0,59363.0,0.064]
[1725108526644,0.000818,59368.0,59364.0,0.146]
[1725108526875,0.000818,59368.0,59367.0,0.12602748]
[1725108527090,0.000818,59368.0,59367.0,0.56413692]
[1725108527357,0.005818,59368.0,59367.0,0.56413692]
[1725108527777,0.000818,59368.0,59367.0,0.56413692]
[1725108527994,0.002818,59368.0,59367.0,0.56413692]
[1725108528211,0.005818,59368.0,59367.0,0.56413692]
[1725108528424,0.003818,59368.0,59367.0,0.43810944]
[1725108528706,0.003818,59368.0,59367.0,0.44010944]
[1725108529363,0.003818,59368.0,59367.0,0.44004514]
[1725108529563,0.000818,59368.0,59367.0,0.44004514]
[1725108529985,0.000818,59368.0,59367.0,0.44104514]
[1725108530199,0.000818,59368.0,59367.0,0.60948814]
[1725108531507,0.000818,59368.0,59367.0,0.44104514]
[1725108532338,0.000818,59368.0,59367.0,0.54181989]
[1725108532542,0.000818,59368.0,59367.0,0.44104514]
[1725108533169,0.000818,59368.0,59367.0,0.60948814]
[1725108533794,0.000818,59368.0,59367.0,0.71025025]
[1725108533999,0.000818,59368.0,59367.0,0.60948814]
[1725108534390,0.000818,59368.0,59367.0,0.60948378]
[1725108535265,0.000818,59368.0,59367.0,0.71023159]
[1725108535446,0.000818,59368.0,59367.0,1.04711859]
[1725108535650,0.000818,59368.0,59367.0,1.04711183]
[1725108535855,0.000818,59368.0,59367.0,0.94637078]
[1725108536063,0.000818,59368.0,59367.0,1.04711391]
[1725108536305,0.000818,59368.0,59367.0,0.73542784]
[1725108536514,0.000818,59368.0,59367.0,0.54179903]
[1725108536862,0.000818,59368.0,59367.0,0.60948378]
[1725108537772,0.000818,59368.0,59367.0,0.73542784]
[1725108538421,0.000818,59368.0,59367.0,0.60948378]
[1725108538635,0.000818,59368.0,59367.0,0.73542784]
[1725108539568,0.000818,59368.0,59367.0,1.07231484]
[1725108539802,0.000818,59368.0,59367.0,0.94637078]
[1725108540507,0.000818,59368.0,59367.0,1.02727078]
[1725108540739,0.000818,59368.0,59367.0,1.15318423]
[1725108540943,0.000818,59368.0,59367.0,1.36415778]
[1725108542602,0.000818,59368.0,59367.0,1.3641497]
[1725108547351,0.000818,59368.0,59367.0,1.36413896]
[1725108548338,0.000818,59368.0,59367.0,1.36413853]
[1725108551423,0.000818,59368.0,59367.0,0.81622283]
[1725108551666,0.000818,59368.0,59367.0,1.02725153]
[1725108551878,0.000818,59368.0,59367.0,1.15310582]
[1725108552558,0.000818,59368.0,59367.0,1.15312631]
[1725108553248,0.000818,59368.0,59367.0,1.07222631]
[1725108554037,0.000818,59368.0,59367.0,0.73533931]
[1725108556467,0.000818,59368.0,59367.0,0.60948369]
[1725108556704,0.000818,59368.0,59367.0,0.73537247]
[1725108556961,0.000818,59368.0,59367.0,0.60948369]
[1725108557194,0.000818,59368.0,59367.0,0.69068369]
[1725108557646,0.000818,59368.0,59367.0,1.02757069]
[1725108557880,0.000818,59368.0,59367.0,0.69068369]
[1725108564213,0.000818,59368.0,59367.0,1.02757069]
[1725108565602,0.000818,59368.0,59367.0,0.69068369]
[1725108567019,0.000818,59368.0,59367.0,0.69067706]
[1725108568368,0.000818,59368.0,59367.0,0.44103406]
[1725108571043,0.000818,59368.0,59367.0,0.60947706]
[1725108571525,0.000818,59368.0,59367.0,1.28433218]
[1725108572193,0.000818,59368.0,59367.0,1.28432708]
[1725108573167,0.000818,59368.0,59367.0,1.62122211]
[1725108574333,0.000818,59368.0,59367.0,0.94399983]
[1725108575286,0.000818,59368.0,59367.0,1.02069983]
[1725108575718,0.000818,59368.0,59367.0,1.54433654]
[1725108575937,0.000818,59368.0,59367.0,1.69554985]
[1725108576593,0.000818,59368.0,59367.0,1.02069983]
[1725108576827,0.000818,59368.0,59367.0,2.03250578]
[1725108577966,0.000818,59368.0,59367.0,1.3575695]
[1725108581334,0.41214646,59375.0,59368.0,0.40108]
[1725108581549,0.168425,59374.0,59372.0,0.12608787]
[1725108581762,0.168425,59374.0,59373.0,0.37401673]
[1725108583009,0.172425,59374.0,59373.0,0.37401673]
[1725108583226,0.172425,59374.0,59373.0,0.43821673]
[1725108583660,0.176425,59374.0,59373.0,0.43821673]
[1725108584511,0.176425,59374.0,59373.0,0.5643046]
[1725108584870,0.181425,59374.0,59373.0,0.5643046]
[1725108587569,0.182243,59374.0,59373.0,0.5643046]
[1725108588289,0.182203,59374.0,59373.0,1.5643046]
[1725108588948,0.182203,59374.0,59373.0,2.5643046]
[1725108591501,0.182203,59374.0,59373.0,2.43822243]
[1725108592630,0.18017589,59374.0,59373.0,2.43822243]
[1725108598139,0.51702289,59374.0,59373.0,2.43822243]
[1725108598394,0.51702289,59374.0,59373.0,2.37402243]
[1725108599096,0.51702289,59374.0,59373.0,2.44042243]
[1725108599584,0.51702289,59374.0,59373.0,2.37402243]
[1725108599585,0.85386989,59374.0,59373.0,2.37402243]
[1725108599868,0.85386989,59374.0,59373.0,2.37492223]
[1725108602743,0.85386989,59374.0,59373.0,2.44132223]
[1725108603153,0.51702289,59374.0,59373.0,2.44132223]
[1725108605170,0.18017589,59374.0,59373.0,2.44132223]
[1725108608266,0.18017589,59374.0,59373.0,2.44132626]
[1725108609717,0.18017589,59374.0,59373.0,2.0672998]
[1725108609935,0.18017589,59374.0,59373.0,2.44133514]
[1725108610132,0.51702289,59374.0,59373.0,2.44133514]
[1725108612137,0.51702289,59374.0,59373.0,2.37493514]
[1725108612650,1.72146389,59374.0,59373.0,2.47584685]
[1725108612856,1.72146389,59374.0,59373.0,2.0008998]
[1725108613072,1.74789016,59374.0,59373.0,2.0008998]
[1725108613287,2.08473716,59374.0,59373.0,2.0008998]
[1725108613697,2.07973716,59374.0,59373.0,2.0008998]
[1725108613903,2.07673716,59374.0,59373.0,2.0018998]
[1725108614311,1.74389016,59374.0,59373.0,2.0028998]
[1725108614512,1.73889016,59374.0,59373.0,2.0018998]
[1725108614920,1.76201876,59374.0,59373.0,2.0028998]
[1725108617664,1.66811876,59374.0,59373.0,2.0028998]
[1725108619868,1.64169249,59374.0,59373.0,2.0028998]
[1725108621806,1.62356389,59374.0,59373.0,2.0632998]
[1725108622044,1.62356389,59374.0,59373.0,2.11368026]
[1725108623916,1.64998816,59374.0,59373.0,2.0632998]
[1725108624674,1.31314116,59374.0,59373.0,2.0632998]
[1725108624913,1.31314116,59374.0,59373.0,2.05327486]
[1725108625849,1.32684116,59374.0,59373.0,2.05327486]
[1725108626076,0.20260016,59374.0,59373.0,2.1454998]
[1725108626318,0.20260016,59374.0,59373.0,3.21157113]
[1725108626319,0.009818,59374.0,59373.0,3.21157113]
[1725108626551,0.009818,59374.0,59373.0,3.69956137]
[1725108626786,0.00366042,59374.0,59373.0,3.54843619]
[1725108627045,0.000818,59375.0,59374.0,0.50527]
[1725108627328,0.0004,59379.0,59378.0,0.183412]
[1725108627602,0.0004,59379.0,59378.0,3.06315383]
[1725108627820,0.0004,59379.0,59378.0,3.07575343]
[1725108628060,0.0004,59379.0,59378.0,3.07238633]
[1725108628273,0.0004,59379.0,59378.0,3.05978673]
[1725108628494,0.0004,59379.0,59378.0,3.05878673]
[1725108628952,0.0004,59379.0,59378.0,3.0584468]
[1725108629385,0.0004,59379.0,59378.0,2.53501161]
[1725108629618,0.0004,59379.0,59378.0,2.69763759]
[1725108629849,0.0004,59379.0,59378.0,2.68363759]
[1725108630044,0.0014,59379.0,59378.0,2.69763759]
[1725108630259,0.0014,59379.0,59378.0,2.47836927]
[1725108630695,0.0014,59379.0,59378.0,2.11454427]
[1725108630938,0.0014,59379.0,59378.0,2.10954427]
[1725108631996,0.0014,59379.0,59378.0,1.77271927]
[1725108632421,0.84419876,59482.0,59379.0,0.005]
[1725108632632,0.505132,59391.0,59388.0,0.05018693]
[1725108633039,0.168378,59391.0,59389.0,0.05018693]
[1725108633255,0.168378,59390.0,59389.0,0.05018693]
[1725108633463,0.344894,59396.0,59388.0,0.05018693]
[1725108633683,0.168376,59391.0,59388.0,0.05017524]
[1725108633889,0.168376,59391.0,59388.0,0.05417524]
[1725108634311,0.168376,59391.0,59388.0,0.05017524]
[1725108634518,0.168376,59391.0,59389.0,0.004]
[1725108634741,0.168376,59391.0,59389.0,0.009]
[1725108634947,0.168376,59391.0,59389.0,0.005]
[1725108636180,0.168376,59391.0,59388.0,0.003]
[1725108636674,0.168376,59391.0,59386.0,0.21856424]
[1725108637020,0.168376,59391.0,59389.0,0.003]
[1725108637513,0.168376,59391.0,59388.0,0.004]
[1725108637719,0.344894,59396.0,59388.0,0.004]
[1725108637720,0.17858459,59393.0,59388.0,0.1404]
[1725108637899,0.000818,59391.0,59389.0,0.16838]
[1725108638136,0.000818,59391.0,59388.0,0.1404]
[1725108638137,0.000818,59391.0,59390.0,0.168378]
[1725108640239,0.000818,59391.0,59390.0,0.171378]
[1725108640921,0.000818,59391.0,59390.0,0.175378]
[1725108641822,0.000818,59391.0,59390.0,0.007]
[1725108641823,0.169193,59391.0,59390.0,0.007]
[1725108642032,0.246293,59391.0,59390.0,0.007]
[1725108642234,0.583044,59391.0,59390.0,0.007]
[1725108642480,0.842695,59391.0,59390.0,0.007]
[1725108645292,1.20586154,59391.0,59390.0,0.007]
[1725108645502,0.86911054,59391.0,59390.0,0.007]
[1725108646701,0.842695,59391.0,59390.0,0.007]
[1725108648209,0.842615,59391.0,59390.0,0.007]
[1725108653748,0.86902806,59391.0,59390.0,0.007]
[1725108656776,0.842615,59391.0,59390.0,0.007]
[1725108656995,0.505864,59391.0,59390.0,0.007]
[1725108658531,0.842615,59391.0,59390.0,0.007]
[1725108658742,0.336751,59391.0,59390.0,0.007]
[1725108658968,0.505126,59391.0,59390.0,0.007]
[1725108659183,0.979877,59391.0,59390.0,0.007]
[1725108659651,1.316628,59391.0,59390.0,0.007]
[1725108659862,1.240928,59391.0,59390.0,0.007]
[1725108660074,1.20504262,59391.0,59390.0,0.007]
[1725108663154,1.20504262,59391.0,59390.0,0.0078998]
[1725108663564,1.20586062,59391.0,59390.0,0.0078998]
[1725108664197,0.53235862,59391.0,59390.0,0.0078998]
[1725108664408,0.86910962,59391.0,59390.0,0.0078998]
[1725108664839,0.53235862,59391.0,59390.0,0.0078998]
[1725108665052,0.19560762,59391.0,59390.0,0.0078998]
[1725108665521,0.53235862,59391.0,59390.0,0.0078998]
[1725108666818,0.505944,59391.0,59390.0,0.0078998]
[1725108668777,0.505944,59391.0,59390.0,0.05812135]
[1725108668986,0.505944,59391.0,59390.0,0.0078998]
[1725108669716,0.842695,59391.0,59390.0,0.0078998]
[1725108669937,0.842695,59391.0,59390.0,0.05814027]
[1725108670571,0.842695,59391.0,59390.0,0.38183456]
[1725108671195,0.86910945,59391.0,59390.0,0.38183456]
[1725108671442,0.86910945,59391.0,59390.0,0.38183425]
[1725108671670,1.26936045,59391.0,59390.0,0.0078998]
[1725108671894,1.36936045,59391.0,59390.0,0.05819903]
[1725108672169,1.36936045,59391.0,59390.0,0.0078998]
[1725108673036,0.005,59388.0,59384.0,0.05029923]
[1725108673264,0.35032975,59391.0,59378.0,0.0008998]
[1725108673265,0.1409,59382.0,59378.0,0.0008998]
[1725108673506,1.178866,59379.0,59378.0,0.0008998]
[1725108673713,1.593085,59379.0,59378.0,0.0008998]
[1725108673920,1.756585,59379.0,59378.0,0.0008998]
[1725108674134,1.78300497,59379.0,59378.0,0.0008998]
[1725108674555,1.95155661,59379.0,59378.0,0.0038998]
[1725108674781,1.95155661,59379.0,59378.0,0.0008998]
[1725108675207,1.95155661,59379.0,59378.0,0.0068998]
[1725108675623,1.78300497,59379.0,59378.0,0.0068998]
[1725108676700,1.756585,59379.0,59378.0,0.0068998]
[1725108677350,1.278866,59379.0,59378.0,0.0118998]
[1725108678294,1.278866,59379.0,59378.0,0.0116998]
[1725108678505,1.278866,59379.0,59378.0,0.0006998]
[1725108684105,1.30528733,59379.0,59378.0,0.0006998]
[1725108685086,0.63164933,59379.0,59378.0,0.0006998]
[1725108685308,0.63164933,59379.0,59378.0,0.0656998]
[1725108686609,0.605228,59379.0,59378.0,0.0656998]
[1725108687933,0.268409,59379.0,59378.0,0.0656998]
[1725108688139,0.605228,59379.0,59378.0,0.0656998]
[1725108689882,0.6316474,59379.0,59378.0,0.0676998]
[1725108690937,0.6316474,59379.0,59378.0,0.0706998]
[1725108692423,0.1264194,59379.0,59378.0,0.1463998]
[1725108692679,0.168409,59380.0,59378.0,0.1463998]
[1725108692897,0.1,59379.0,59378.0,0.1463998]
[1725108693754,0.268409,59379.0,59378.0,0.1463998]
[1725108694384,0.268409,59379.0,59378.0,0.1443998]
[1725108694787,0.268409,59379.0,59378.0,0.1453998]
[1725108695216,0.168409,59379.0,59378.0,0.1443998]
[1725108695603,0.168406,59381.0,59378.0,0.1463998]
[1725108695802,0.268407,59380.0,59378.0,0.1463998]
[1725108696009,0.02641833,59380.0,59378.0,0.1463998]
[1725108696348,0.19482533,59380.0,59378.0,0.1463998]
[1725108696529,0.168407,59380.0,59378.0,0.1463998]
[1725108697376,0.168407,59380.0,59378.0,0.1413998]
[1725108697576,0.168402,59382.0,59378.0,0.1413998]
[1725108697805,0.3368,59383.0,59378.0,0.1423998]
[1725108698231,0.168404,59381.0,59378.0,0.1423998]
[1725108698440,0.168404,59381.0,59378.0,0.1413998]
[1725108698650,0.168404,59381.0,59378.0,0.1423998]
[1725108699313,0.1,59388.0,59382.0,0.1684]
[1725108699314,0.16839,59386.0,59382.0,0.1684]
[1725108699540,0.1,59385.0,59382.0,0.1684]
[1725108700262,0.268393,59385.0,59379.0,0.400817]
[1725108700463,0.268393,59385.0,59381.0,0.168402]
[1725108701692,0.269212,59385.0,59379.0,0.569223]
[1725108702152,0.277212,59385.0,59379.0,0.569223]
[1725108702378,0.168395,59384.0,59380.0,0.168406]
[1725108704511,0.168398,59383.0,59380.0,0.168406]
[1725108704717,0.168398,59383.0,59379.0,0.232409]
[1725108705800,0.168398,59383.0,59380.0,0.001]
[1725108706023,0.168398,59383.0,59380.0,0.05018628]
[1725108706229,0.168398,59383.0,59379.0,0.28259528]
[1725108706642,0.168398,59383.0,59380.0,0.05018628]
[1725108707052,0.100819,59385.0,59380.0,0.05018628]
[1725108707053,0.168401,59382.0,59380.0,0.05018628]
[1725108707250,0.168401,59382.0,59379.0,0.28259528]
[1725108707665,0.100819,59385.0,59379.0,0.064]
[1725108707666,0.336797,59383.0,59379.0,0.064]
[1725108707876,0.168406,59380.0,59379.0,0.001]
[1725108708083,0.505219,59380.0,59379.0,0.001]
[1725108708293,0.505219,59380.0,59379.0,0.002]
[1725108708499,0.842032,59380.0,59379.0,0.001]
[1725108708703,0.842032,59380.0,59378.0,0.0006998]
[1725108708704,0.505228,59379.0,59378.0,0.0006998]
[1725108710788,0.506228,59379.0,59378.0,0.0066998]
[1725108711200,0.507228,59379.0,59378.0,0.0126998]
[1725108711618,0.844047,59379.0,59378.0,0.0126998]
[1725108712633,0.844047,59379.0,59378.0,0.06289688]
[1725108714592,0.844047,59379.0,59378.0,0.06292079]
[1725108715033,0.844047,59379.0,59378.0,0.06292293]
[1725108715443,0.844047,59379.0,59378.0,0.0126998]
[1725108716708,1.180866,59379.0,59378.0,0.06293739]
[1725108716930,1.180866,59379.0,59378.0,0.0126998]
[1725108718418,1.180866,59379.0,59378.0,0.06293828]
[1725108718543,1.180866,59379.0,59378.0,0.0126998]
[1725108720457,1.180866,59379.0,59378.0,0.06295078]
[1725108721020,1.20728473,59379.0,59378.0,0.06295078]
[1725108721484,0.87046573,59379.0,59378.0,0.0126998]
[1725108721714,0.87046573,59379.0,59378.0,0.45041423]
[1725108722389,0.87046573,59379.0,59378.0,0.5509162]
[1725108722624,0.87046573,59379.0,59378.0,0.45041423]
[1725108723331,0.87046573,59379.0,59378.0,0.5509162]
[1725108723556,0.87046573,59379.0,59378.0,0.55094681]
[1725108723798,0.87046573,59379.0,59378.0,0.45040006]
[1725108724717,0.87046573,59379.0,59378.0,0.55094681]
[1725108724940,0.87046573,59379.0,59378.0,0.45040006]
[1725108725816,0.87046573,59379.0,59378.0,0.55094681]
[1725108726740,0.84202006,59379.0,59378.0,0.45040006]
[1725108727304,0.84202006,59379.0,59378.0,0.55094681]
[1725108727539,0.84202006,59379.0,59378.0,0.45040006]
[1725108728238,0.84202006,59379.0,59378.0,0.55094681]
[1725108728462,0.84202006,59379.0,59378.0,0.45040006]
[1725108728703,0.84202006,59379.0,59378.0,0.45040572]
[1725108729435,0.84202006,59379.0,59378.0,0.57618289]
[1725108729848,0.86843826,59379.0,59378.0,0.57618289]
[1725108730271,0.86843826,59379.0,59378.0,0.53000572]
[1725108733602,0.86843826,59379.0,59378.0,0.53000961]
[1725108735816,1.20525726,59379.0,59378.0,0.38670961]
[1725108736243,0.86843826,59379.0,59378.0,0.38670961]
[1725108736443,0.53161926,59379.0,59378.0,0.44910961]
[1725108736659,0.50520106,59379.0,59378.0,0.53080961]
[1725108737038,0.16838206,59379.0,59378.0,0.53080961]
[1725108737228,0.002,59379.0,59378.0,0.53080961]
[1725108737542,0.170409,59379.0,59378.0,0.53080961]
[1725108738503,0.170409,59379.0,59378.0,0.53079229]
[1725108742564,0.196827,59379.0,59378.0,0.53079229]
[1725108744230,0.533646,59379.0,59378.0,0.53079229]
[1725108744429,0.196827,59379.0,59378.0,0.53079229]
[1725108745080,0.170409,59379.0,59378.0,0.53079229]
[1725108745285,0.100819,59385.0,59378.0,0.53079229]
[1725108745489,0.100819,59385.0,59384.0,0.07550352]
[1725108745703,0.100819,59385.0,59382.0,0.10067136]
[1725108745704,0.505194,59383.0,59382.0,0.10067136]
[1725108745878,0.84199,59383.0,59382.0,0.47465128]
[1725108746122,0.84199,59383.0,59382.0,0.37397992]
[1725108746296,0.84199,59383.0,59382.0,0.47465128]
[1725108746733,0.86840755,59383.0,59382.0,0.37397992]
[1725108747569,0.86840755,59383.0,59382.0,0.37597992]
[1725108747951,0.86840755,59383.0,59382.0,0.47665128]
[1725108748393,0.53161155,59383.0,59382.0,0.37597992]
[1725108748977,0.53161155,59383.0,59382.0,0.47665128]
[1725108749150,0.86840755,59383.0,59382.0,0.37597992]
[1725108749756,0.84199,59383.0,59382.0,0.37597992]
[1725108750532,0.505194,59383.0,59382.0,0.37597992]
[1725108750733,0.842809,59383.0,59382.0,0.002]
[1725108751206,0.842809,59383.0,59382.0,0.05234874]
[1725108751432,0.842809,59383.0,59382.0,0.002]
[1725108751664,0.842809,59383.0,59382.0,0.001]
[1725108751861,0.84202,59381.0,59380.0,0.07551627]
[1725108752123,0.84202,59381.0,59380.0,0.4495267]
[1725108752351,0.84202,59381.0,59380.0,0.37401043]
[1725108752788,0.842047,59379.0,59378.0,0.0006998]
[1725108752999,0.842047,59379.0,59378.0,0.47537996]
[1725108753213,0.842047,59379.0,59378.0,0.3747086]
[1725108753457,0.842047,59379.0,59378.0,0.37469876]
[1725108753649,0.842047,59379.0,59378.0,0.47539034]
[1725108754100,0.842047,59379.0,59378.0,0.37469876]
[1725108754707,0.842047,59379.0,59378.0,0.47539237]
[1725108755107,0.842047,59379.0,59378.0,0.37469876]
[1725108756685,0.842047,59379.0,59378.0,0.5005713]
[1725108757114,0.842047,59379.0,59378.0,0.37469876]
[1725108757327,0.842047,59379.0,59378.0,0.50057156]
[1725108757529,0.842047,59379.0,59378.0,0.37469876]
[1725108757754,0.842047,59379.0,59378.0,0.5005708]
[1725108758110,0.842047,59379.0,59378.0,0.37469876]
[1725108758311,0.842047,59379.0,59378.0,0.5005708]
[1725108758506,0.842047,59379.0,59378.0,0.37469876]
[1725108758741,0.842047,59379.0,59378.0,0.5005708]
[1725108759104,0.842047,59379.0,59378.0,0.37469876]
[1725108759311,0.842047,59379.0,59378.0,0.5005708]
[1725108760740,0.842047,59379.0,59378.0,0.37469876]
[1725108761120,0.842047,59379.0,59378.0,0.5005708]
[1725108761678,0.842047,59379.0,59378.0,0.37469876]
[1725108761881,0.842047,59379.0,59378.0,0.5005708]
[1725108762957,0.8684654,59379.0,59378.0,0.5005708]
[1725108763945,0.842047,59379.0,59378.0,0.5005708]
[1725108765647,0.842047,59379.0,59378.0,0.37469876]
[1725108766346,0.842047,59379.0,59378.0,0.50058097]
[1725108766532,0.842047,59379.0,59378.0,0.37469876]
[1725108766739,0.842047,59379.0,59378.0,0.50058051]
[1725108766941,0.842047,59379.0,59378.0,0.37469876]
[1725108767154,0.842047,59379.0,59378.0,0.50058027]
[1725108767355,0.842047,59379.0,59378.0,0.50058024]
[1725108767498,0.842047,59379.0,59378.0,0.37469876]
[1725108768315,0.842047,59379.0,59378.0,0.50058582]
[1725108768494,0.842047,59379.0,59378.0,0.50058336]
[1725108770231,0.86846539,59379.0,59378.0,0.50058336]
[1725108771203,0.842047,59379.0,59378.0,0.50058336]
[1725108772623,0.842047,59379.0,59378.0,0.50158336]
[1725108774199,0.842047,59379.0,59378.0,0.50358336]
[1725108774403,0.86846538,59379.0,59378.0,0.50358336]
[1725108776347,1.178866,59379.0,59378.0,0.50358336]
[1725108776517,1.243266,59379.0,59378.0,0.07924483]
[1725108776717,1.243266,59379.0,59378.0,0.0036998]
[1725108776924,1.243266,59379.0,59378.0,0.05407094]
[1725108777328,1.243266,59379.0,59378.0,0.0026998]
[1725108777528,1.243266,59379.0,59378.0,0.0006998]
[1725108777908,1.243266,59379.0,59378.0,0.0016998]
[1725108779235,1.178866,59379.0,59378.0,0.0016998]
[1725108785754,1.20528535,59379.0,59378.0,0.0016998]
[1725108787091,0.53164735,59379.0,59378.0,0.0016998]
[1725108787355,0.53164735,59379.0,59378.0,0.5122949]
[1725108787723,0.53164735,59379.0,59378.0,0.43682537]
[1725108788486,0.86846635,59379.0,59378.0,0.43682537]
[1725108788861,0.86846635,59379.0,59378.0,0.43681096]
[1725108789271,0.86846635,59379.0,59378.0,0.51228577]
[1725108789961,0.86846635,59379.0,59378.0,0.43681096]
[1725108791593,0.86846635,59379.0,59378.0,0.43681056]
[1725108792793,0.53164735,59379.0,59378.0,0.43681056]
[1725108792993,0.53164735,59379.0,59378.0,0.53744557]
[1725108794288,0.505228,59379.0,59378.0,0.53744557]
[1725108795348,0.505228,59379.0,59378.0,0.43681056]
[1725108796709,0.505228,59379.0,59378.0,0.43680705]
[1725108798264,0.168409,59379.0,59378.0,0.43680705]
[1725108799074,0.505228,59379.0,59378.0,0.43680705]
[1725108799496,0.505228,59379.0,59378.0,0.56262805]
[1725108799497,0.168409,59379.0,59378.0,0.56262805]
[1725108800045,0.505228,59379.0,59378.0,0.43680705]
[1725108802822,0.505228,59379.0,59378.0,0.56262805]
[1725108802950,0.168409,59379.0,59378.0,0.43680705]
[1725108803353,0.168409,59379.0,59378.0,0.56260508]
[1725108804356,0.337621,59382.0,59378.0,0.43680705]
[1725108804561,0.505212,59381.0,59380.0,0.07548025]
[1725108806207,0.507212,59381.0,59380.0,0.07548025]
[1725108806425,0.168406,59380.0,59379.0,0.07548025]
[1725108806707,0.168406,59380.0,59379.0,0.44947972]
[1725108807118,0.168406,59380.0,59379.0,0.37399947]
[1725108807524,0.168406,59380.0,59379.0,0.44947373]
[1725108808387,0.168406,59380.0,59379.0,0.45147373]
[1725108809232,0.168406,59380.0,59379.0,0.45447373]
[1725108811462,0.168406,59380.0,59379.0,0.37899852]
[1725108812830,0.168406,59380.0,59379.0,0.51989852]
[1725108814387,0.168406,59380.0,59379.0,0.64568503]
[1725108815809,0.168406,59380.0,59379.0,0.43929852]
[1725108816055,0.168406,59380.0,59379.0,0.53990895]
[1725108816301,0.168406,59380.0,59379.0,0.53990963]
[1725108817839,0.168406,59380.0,59379.0,0.43929573]
[1725108819146,0.505219,59380.0,59379.0,0.43929573]
[1725108819943,0.168406,59380.0,59379.0,0.43929573]
[1725108820444,0.505219,59380.0,59379.0,0.43929573]
[1725108820888,0.505219,59380.0,59379.0,0.53992703]
[1725108821308,0.505219,59380.0,59379.0,0.53993553]
[1725108823472,0.505219,59380.0,59379.0,0.47963553]
[1725108825196,0.505219,59380.0,59379.0,0.48053533]
[1725108825419,0.506037,59380.0,59379.0,0.48053533]
[1725108826330,0.84285,59380.0,59379.0,0.48053533]
[1725108826786,0.84285,59380.0,59379.0,0.08140547]
[1725108827210,0.168418,59376.0,59374.0,0.14316476]
[1725108827411,0.168418,59376.0,59375.0,0.3740225]
[1725108827609,0.168418,59376.0,59373.0,2.0008998]
[1725108827610,0.402636,59376.0,59373.0,2.07642514]
[1725108827913,0.505263,59375.0,59374.0,0.05035165]
[1725108828150,1.178947,59375.0,59374.0,0.05035165]
[1725108828581,1.244747,59375.0,59374.0,0.05735165]
[1725108828792,1.244747,59375.0,59374.0,0.05735518]
[1725108829017,1.244747,59375.0,59374.0,0.05035518]
[1725108829504,1.244747,59375.0,59374.0,0.05835518]
[1725108829505,1.245747,59375.0,59374.0,0.05835518]
[1725108830175,1.246747,59375.0,59374.0,0.06735518]
[1725108830848,1.246747,59375.0,59374.0,0.017]
[1725108832376,1.27316789,59375.0,59374.0,0.017]
[1725108833139,1.68810989,59375.0,59374.0,0.017]
[1725108833390,1.78810989,59375.0,59374.0,0.017]
[1725108834128,1.78710989,59375.0,59374.0,0.009]
[1725108834608,1.78710989,59375.0,59374.0,0.013]
[1725108835564,1.78610989,59375.0,59374.0,0.004]
[1725108836302,1.78610989,59375.0,59374.0,0.009]